Workbook

Sheet FT240-52
A1: Calculate impedance of toroidal ferrite cored inductor
A3: Reference:
A4: A method for estimating the impedance of a ferrite cored toroidal inductor at RF
A6: Inputs:
A7: Al (nH for 1t) | B7: 340
A8: N | B8: 11
A9: Cs (pF) | B9: 3
A11: Constants:
A12: Mix | B12: =Mix!B1 -> 52
A13: µi | B13: =Mix!B2 -> 250
A15: Calculated values:
A16: 2*pi*N^2*Al | B16: =2*PI()*$B$8^2*$B$7*0.000000001 -> 0.0002584902435
A18: f (MHz) | B18: 1 | C18: 1.2 | D18: 1.8 | E18: 2 | F18: 2.5 | G18: 3 | H18: 3.5 | I18: 4 | J18: 4.5 | K18: 5 | L18: 5.5 | M18: 6 | N18: =M18+1 -> 7 | O18: 8 | P18: 9 | Q18: 10 | R18: 11 | S18: 12 | T18: 13 | U18: 14 | V18: 15 | W18: 16 | X18: 17 | Y18: 18 | Z18: 19 | AA18: 22 | AB18: 24 | AC18: 26 | AD18: 28 | AE18: 30
A19: µ'' | B19: =csinterpolate(CSTableU2,'FT240-52'!B18*1000000) -> 3.0499 | C19: =csinterpolate(CSTableU2,'FT240-52'!C18*1000000) -> 3.290483119 | D19: =csinterpolate(CSTableU2,'FT240-52'!D18*1000000) -> 3.967018517 | E19: =csinterpolate(CSTableU2,'FT240-52'!E18*1000000) -> 4.162421369 | F19: =csinterpolate(CSTableU2,'FT240-52'!F18*1000000) -> 4.693447403 | G19: =csinterpolate(CSTableU2,'FT240-52'!G18*1000000) -> 5.786974597 | H19: =csinterpolate(CSTableU2,'FT240-52'!H18*1000000) -> 7.358062023 | I19: =csinterpolate(CSTableU2,'FT240-52'!I18*1000000) -> 9.926754908 | J19: =csinterpolate(CSTableU2,'FT240-52'!J18*1000000) -> 13.81033893 | K19: =csinterpolate(CSTableU2,'FT240-52'!K18*1000000) -> 20.51161151 | L19: =csinterpolate(CSTableU2,'FT240-52'!L18*1000000) -> 29.80995539 | M19: =csinterpolate(CSTableU2,'FT240-52'!M18*1000000) -> 41.29775876 | N19: =csinterpolate(CSTableU2,'FT240-52'!N18*1000000) -> 71.22782978 | O19: =csinterpolate(CSTableU2,'FT240-52'!O18*1000000) -> 98.04243289 | P19: =csinterpolate(CSTableU2,'FT240-52'!P18*1000000) -> 124.3985141 | Q19: =csinterpolate(CSTableU2,'FT240-52'!Q18*1000000) -> 137.4808043 | R19: =csinterpolate(CSTableU2,'FT240-52'!R18*1000000) -> 148.5994342 | S19: =csinterpolate(CSTableU2,'FT240-52'!S18*1000000) -> 151.0024937 | T19: =csinterpolate(CSTableU2,'FT240-52'!T18*1000000) -> 152.2312886 | U19: =csinterpolate(CSTableU2,'FT240-52'!U18*1000000) -> 151.7704405 | V19: =csinterpolate(CSTableU2,'FT240-52'!V18*1000000) -> 148.1951068 | W19: =csinterpolate(CSTableU2,'FT240-52'!W18*1000000) -> 144.1975181 | X19: =csinterpolate(CSTableU2,'FT240-52'!X18*1000000) -> 141.7087937 | Y19: =csinterpolate(CSTableU2,'FT240-52'!Y18*1000000) -> 139.0871928 | Z19: =csinterpolate(CSTableU2,'FT240-52'!Z18*1000000) -> 135.5078614 | AA19: =csinterpolate(CSTableU2,'FT240-52'!AA18*1000000) -> 124.1970315 | AB19: =csinterpolate(CSTableU2,'FT240-52'!AB18*1000000) -> 118.8541185 | AC19: =csinterpolate(CSTableU2,'FT240-52'!AC18*1000000) -> 114.3762866 | AD19: =csinterpolate(CSTableU2,'FT240-52'!AD18*1000000) -> 110.3203179 | AE19: =csinterpolate(CSTableU2,'FT240-52'!AE18*1000000) -> 106.5746901
A20: µ' | B20: =csinterpolate(CSTableU1,'FT240-52'!B18*1000000) -> 271.823 | C20: =csinterpolate(CSTableU1,'FT240-52'!C18*1000000) -> 272.1908295 | D20: =csinterpolate(CSTableU1,'FT240-52'!D18*1000000) -> 272.3470565 | E20: =csinterpolate(CSTableU1,'FT240-52'!E18*1000000) -> 271.7845312 | F20: =csinterpolate(CSTableU1,'FT240-52'!F18*1000000) -> 270.4177738 | G20: =csinterpolate(CSTableU1,'FT240-52'!G18*1000000) -> 270.723567 | H20: =csinterpolate(CSTableU1,'FT240-52'!H18*1000000) -> 277.7487386 | I20: =csinterpolate(CSTableU1,'FT240-52'!I18*1000000) -> 284.4052224 | J20: =csinterpolate(CSTableU1,'FT240-52'!J18*1000000) -> 292.2264137 | K20: =csinterpolate(CSTableU1,'FT240-52'!K18*1000000) -> 298.9390829 | L20: =csinterpolate(CSTableU1,'FT240-52'!L18*1000000) -> 301.5249442 | M20: =csinterpolate(CSTableU1,'FT240-52'!M18*1000000) -> 305.3891618 | N20: =csinterpolate(CSTableU1,'FT240-52'!N18*1000000) -> 305.2435532 | O20: =csinterpolate(CSTableU1,'FT240-52'!O18*1000000) -> 296.2383215 | P20: =csinterpolate(CSTableU1,'FT240-52'!P18*1000000) -> 276.5143723 | Q20: =csinterpolate(CSTableU1,'FT240-52'!Q18*1000000) -> 260.2891656 | R20: =csinterpolate(CSTableU1,'FT240-52'!R18*1000000) -> 237.532035 | S20: =csinterpolate(CSTableU1,'FT240-52'!S18*1000000) -> 218.8742166 | T20: =csinterpolate(CSTableU1,'FT240-52'!T18*1000000) -> 203.3317219 | U20: =csinterpolate(CSTableU1,'FT240-52'!U18*1000000) -> 189.3765055 | V20: =csinterpolate(CSTableU1,'FT240-52'!V18*1000000) -> 177.3300299 | W20: =csinterpolate(CSTableU1,'FT240-52'!W18*1000000) -> 167.2096561 | X20: =csinterpolate(CSTableU1,'FT240-52'!X18*1000000) -> 158.8781002 | Y20: =csinterpolate(CSTableU1,'FT240-52'!Y18*1000000) -> 151.5012432 | Z20: =csinterpolate(CSTableU1,'FT240-52'!Z18*1000000) -> 144.6963794 | AA20: =csinterpolate(CSTableU1,'FT240-52'!AA18*1000000) -> 128.5557802 | AB20: =csinterpolate(CSTableU1,'FT240-52'!AB18*1000000) -> 121.0419581 | AC20: =csinterpolate(CSTableU1,'FT240-52'!AC18*1000000) -> 114.4356942 | AD20: =csinterpolate(CSTableU1,'FT240-52'!AD18*1000000) -> 108.4930625 | AE20: =csinterpolate(CSTableU1,'FT240-52'!AE18*1000000) -> 103.5410108
A21: Rl | B21: =B19/$B$13*$B$16*B18*1000000 -> 3.153477575 | C21: 4.082677357 | D21: 7.383136194 | E21: 8.607562506 | F21: 12.13210362 | G21: 17.95051767 | H21: 26.62782142 | I21: 41.0555087 | J21: 64.25708171 | K21: 106.0410291 | L21: 169.5228178 | M21: 256.2016252 | N21: 515.5275739 | O21: 810.9763954 | P21: 1157.60888 | Q21: 1421.497864 | R21: 1690.106174 | S21: 1873.568226 | T21: 2046.215749 | U21: 2196.945975 | V21: 2298.419356 | W21: 2385.513701 | X21: 2490.863161 | Y21: 2588.593129 | Z21: 2662.086967 | AA21: 2825.12744 | AB21: 2949.372483 | AC21: 3074.776034 | AD21: 3193.873294 | AE21: 3305.822111
A22: Xl | B22: =B20/$B$13*$B$16*B18*1000000 -> 281.0543739 | C22: 337.7216342 | D22: 506.8732101 | E22: 562.0291972 | F22: 699.0035619 | G22: 839.7528092 | H22: 1005.134747 | I22: 1176.255603 | J22: 1359.678183 | K22: 1545.456727 | L22: 1714.707638 | M22: 1894.562851 | N22: 2209.269451 | O22: 2450.390908 | P22: 2573.145628 | Q22: 2691.288393 | R22: 2701.587397 | S22: 2715.688779 | T22: 2733.081848 | U22: 2741.310825 | V22: 2750.284957 | W22: 2766.212142 | X22: 2792.653839 | Y22: 2819.634715 | Z22: 2842.597779 | AA22: 2924.276513 | AB22: 3003.663862 | AC22: 3076.373088 | AD22: 3140.972592 | AE22: 3211.720931
A23: Yl | B23: =IMDIV(1,COMPLEX(B21,B22)) -> 0.0000399166769705046-0.00355758250570624i | C23: 0.0000357901758521305-0.0029605858166146i | D23: 0.0000287309555067174-0.00197246146676408i | E23: 0.0000272433541740462-0.00177884975741211i | F23: 0.0000248225575361119-0.00143017704714738i | G23: 0.0000254434295227731-0.00119028274308903i | H23: 0.0000263379746235631-0.000994193743674182i | I23: 0.000029637342984169-0.000849120906210543i | J23: 0.000034680061632786-0.000733829205143615i | K23: 0.0000441896320790221-0.000644025852372189i | L23: 0.000057098378734839-0.000577544824690412i | M23: 0.0000700960567923037-0.000518347161524488i | N23: 0.000100167790054159-0.000429264407558877i | O23: 0.000121729875034463-0.000367810679450044i | P23: 0.000145407486045936-0.00032321334399663i | Q23: 0.000153448351298647-0.000290520145894186i | R23: 0.000166430391368816-0.000266034320724673i | S23: 0.000172120327748328-0.000249483971881768i | T23: 0.000175539351268174-0.000234463748394292i | U23: 0.000178014948908964-0.000222123944819639i | V23: 0.000178909888525601-0.000214083288987849i | W23: 0.000178789198890859-0.000207321740669331i | X23: 0.000177876681697437-0.000199428056068757i | Y23: 0.000176681855501784-0.000192451369672798i | Z23: 0.000175517559788997-0.000187419055760483i | AA23: 0.0001708807947899-0.000176877930437604i | AB23: 0.000166435678690488-0.000169499388861365i | AC23: 0.000162529029588599-0.000162613447976187i | AD23: 0.000159164161810724-0.000156527896964959i | AE23: 0.000155614885109581-0.000151185262482575i
A24: Yc | B24: =COMPLEX(0,2*PI()*B18*1000000*$B$9*0.000000000001) -> 0.0000188495559215388i | C24: 0.0000226194671058465i | D24: 0.0000339292006587698i | E24: 0.0000376991118430775i | F24: 0.0000471238898038469i | G24: 0.0000565486677646163i | H24: 0.0000659734457253857i | I24: 0.000075398223686155i | J24: 0.0000848230016469244i | K24: 0.0000942477796076938i | L24: 0.000103672557568463i | M24: 0.000113097335529233i | N24: 0.000131946891450771i | O24: 0.00015079644737231i | P24: 0.000169646003293849i | Q24: 0.000188495559215388i | R24: 0.000207345115136926i | S24: 0.000226194671058465i | T24: 0.000245044226980004i | U24: 0.000263893782901543i | V24: 0.000282743338823081i | W24: 0.00030159289474462i | X24: 0.000320442450666159i | Y24: 0.000339292006587698i | Z24: 0.000358141562509236i | AA24: 0.000414690230273853i | AB24: 0.00045238934211693i | AC24: 0.000490088453960008i | AD24: 0.000527787565803085i | AE24: 0.000565486677646163i
A25: Z | B25: =IMDIV(1,IMSUM(B23,B24)) -> 3.18715764220568+282.551069393008i | C25: 4.14577523842656+340.320991812025i | D25: 7.64378766046085+515.740905713927i | E25: 8.98424462898978+574.192268535646i | F25: 12.9726562261545+722.805179386265i | G25: 19.7849324718505+881.597038687437i | H25: 30.5443390920631+1076.46377285667i | I25: 49.4346941293531+1290.55914938011i | J25: 82.1001331190057+1536.43024820248i | K25: 145.260930815948+1807.24008856097i | L25: 250.634686210392+2080.07354333949i | M25: 414.424102280972+2395.93071312456i | N25: 1017.64173239834+3020.55892419144i | O25: 1966.13324711218+3505.12884913218i | P25: 3251.0536175433+3433.49350232601i | Q25: 4519.11311424105+3004.6634175811i | R25: 5343.9851632008+1884.47699558632i | S25: 5705.43211105908+771.992050559399i | T25: 5676.10723671544-342.122325475182i | U25: 5324.3622789788-1249.32064214492i | V25: 4871.8821699101-1869.67682632891i | W25: 4376.44301166528-2307.59092838865i | X25: 3843.10744726514-2614.57160469538i | Y25: 3347.60084076649-2782.1976297393i | Z25: 2927.60605233592-2847.62530101528i | AA25: 1992.6642453199-2773.16165086679i | AB25: 1544.96841350189-2625.97566648943i | AC25: 1216.02889924419-2450.14119671102i | AD25: 975.468011398376-2275.33589693774i | AE25: 794.5142965866-2115.27577976706i
A26: R | B26: =IMREAL(B25) -> 3.187157642 | C26: 4.145775238 | D26: 7.64378766 | E26: 8.984244629 | F26: 12.97265623 | G26: 19.78493247 | H26: 30.54433909 | I26: 49.43469413 | J26: 82.10013312 | K26: 145.2609308 | L26: 250.6346862 | M26: 414.4241023 | N26: 1017.641732 | O26: 1966.133247 | P26: 3251.053618 | Q26: 4519.113114 | R26: 5343.985163 | S26: 5705.432111 | T26: 5676.107237 | U26: 5324.362279 | V26: 4871.88217 | W26: 4376.443012 | X26: 3843.107447 | Y26: 3347.600841 | Z26: 2927.606052 | AA26: 1992.664245 | AB26: 1544.968414 | AC26: 1216.028899 | AD26: 975.4680114 | AE26: 794.5142966
A27: X | B27: =IMAGINARY(B25) -> 282.5510694 | C27: 340.3209918 | D27: 515.7409057 | E27: 574.1922685 | F27: 722.8051794 | G27: 881.5970387 | H27: 1076.463773 | I27: 1290.559149 | J27: 1536.430248 | K27: 1807.240089 | L27: 2080.073543 | M27: 2395.930713 | N27: 3020.558924 | O27: 3505.128849 | P27: 3433.493502 | Q27: 3004.663418 | R27: 1884.476996 | S27: 771.9920506 | T27: -342.1223255 | U27: -1249.320642 | V27: -1869.676826 | W27: -2307.590928 | X27: -2614.571605 | Y27: -2782.19763 | Z27: -2847.625301 | AA27: -2773.161651 | AB27: -2625.975666 | AC27: -2450.141197 | AD27: -2275.335897 | AE27: -2115.27578
A28: |Z| | B28: =IMABS(B25) -> 282.5690443 | C28: 340.3462427 | D28: 515.7975468 | E28: 574.2625514 | F28: 722.9215844 | G28: 881.8190189 | H28: 1076.897029 | I28: 1291.505597 | J28: 1538.622221 | K28: 1813.068525 | L28: 2095.119016 | M28: 2431.508034 | N28: 3187.376807 | O28: 4018.906343 | P28: 4728.448715 | Q28: 5426.820947 | R28: 5666.518417 | S28: 5757.423669 | T28: 5686.408449 | U28: 5468.970264 | V28: 5218.326103 | W28: 4947.547809 | X28: 4648.16733 | Y28: 4352.821503 | Z28: 4084.096847 | AA28: 3414.840602 | AB28: 3046.748365 | AC28: 2735.30952 | AD28: 2475.619374 | AE28: 2259.567346
A32: Module | B32: Version | C32: Date
A33: CubicSpline | B33: =CubicSpline_version("v") -> 1.04 | C33: =CubicSpline_version("d") -> 2014-03-07
A35: Copyright: Owen Duffy 2010. All rights reserved.

Sheet FT240-52x2
A1: Calculate impedance of toroidal ferrite cored inductor
A3: Reference:
A4: A method for estimating the impedance of a ferrite cored toroidal inductor at RF
A6: Inputs:
A7: Al (nH for 1t) | B7: =2*340 -> 680
A8: N | B8: 11
A9: Cs (pF) | B9: 1.4
A11: Constants:
A12: Mix | B12: =Mix!B1 -> 52
A13: µi | B13: =Mix!B2 -> 250
A15: Calculated values:
A16: 2*pi*N^2*Al | B16: =2*PI()*$B$8^2*$B$7*0.000000001 -> 0.0005169804871
A18: f (MHz) | B18: 1 | C18: 1.2 | D18: 1.8 | E18: 2 | F18: 2.5 | G18: 3 | H18: 3.5 | I18: 4 | J18: 4.5 | K18: 5 | L18: 5.5 | M18: 6 | N18: =M18+1 -> 7 | O18: 8 | P18: 9 | Q18: 10 | R18: 11 | S18: 12 | T18: 13 | U18: 14 | V18: 15 | W18: 16 | X18: 17 | Y18: 18 | Z18: 19 | AA18: 22 | AB18: 24 | AC18: 26 | AD18: 28 | AE18: 30
A19: µ'' | B19: =csinterpolate(CSTableU2,'FT240-52x2'!B18*1000000) -> 3.0499 | C19: =csinterpolate(CSTableU2,'FT240-52x2'!C18*1000000) -> 3.290483119 | D19: =csinterpolate(CSTableU2,'FT240-52x2'!D18*1000000) -> 3.967018517 | E19: =csinterpolate(CSTableU2,'FT240-52x2'!E18*1000000) -> 4.162421369 | F19: =csinterpolate(CSTableU2,'FT240-52x2'!F18*1000000) -> 4.693447403 | G19: =csinterpolate(CSTableU2,'FT240-52x2'!G18*1000000) -> 5.786974597 | H19: =csinterpolate(CSTableU2,'FT240-52x2'!H18*1000000) -> 7.358062023 | I19: =csinterpolate(CSTableU2,'FT240-52x2'!I18*1000000) -> 9.926754908 | J19: =csinterpolate(CSTableU2,'FT240-52x2'!J18*1000000) -> 13.81033893 | K19: =csinterpolate(CSTableU2,'FT240-52x2'!K18*1000000) -> 20.51161151 | L19: =csinterpolate(CSTableU2,'FT240-52x2'!L18*1000000) -> 29.80995539 | M19: =csinterpolate(CSTableU2,'FT240-52x2'!M18*1000000) -> 41.29775876 | N19: =csinterpolate(CSTableU2,'FT240-52x2'!N18*1000000) -> 71.22782978 | O19: =csinterpolate(CSTableU2,'FT240-52x2'!O18*1000000) -> 98.04243289 | P19: =csinterpolate(CSTableU2,'FT240-52x2'!P18*1000000) -> 124.3985141 | Q19: =csinterpolate(CSTableU2,'FT240-52x2'!Q18*1000000) -> 137.4808043 | R19: =csinterpolate(CSTableU2,'FT240-52x2'!R18*1000000) -> 148.5994342 | S19: =csinterpolate(CSTableU2,'FT240-52x2'!S18*1000000) -> 151.0024937 | T19: =csinterpolate(CSTableU2,'FT240-52x2'!T18*1000000) -> 152.2312886 | U19: =csinterpolate(CSTableU2,'FT240-52x2'!U18*1000000) -> 151.7704405 | V19: =csinterpolate(CSTableU2,'FT240-52x2'!V18*1000000) -> 148.1951068 | W19: =csinterpolate(CSTableU2,'FT240-52x2'!W18*1000000) -> 144.1975181 | X19: =csinterpolate(CSTableU2,'FT240-52x2'!X18*1000000) -> 141.7087937 | Y19: =csinterpolate(CSTableU2,'FT240-52x2'!Y18*1000000) -> 139.0871928 | Z19: =csinterpolate(CSTableU2,'FT240-52x2'!Z18*1000000) -> 135.5078614 | AA19: =csinterpolate(CSTableU2,'FT240-52x2'!AA18*1000000) -> 124.1970315 | AB19: =csinterpolate(CSTableU2,'FT240-52x2'!AB18*1000000) -> 118.8541185 | AC19: =csinterpolate(CSTableU2,'FT240-52x2'!AC18*1000000) -> 114.3762866 | AD19: =csinterpolate(CSTableU2,'FT240-52x2'!AD18*1000000) -> 110.3203179 | AE19: =csinterpolate(CSTableU2,'FT240-52x2'!AE18*1000000) -> 106.5746901
A20: µ' | B20: =csinterpolate(CSTableU1,'FT240-52x2'!B18*1000000) -> 271.823 | C20: =csinterpolate(CSTableU1,'FT240-52x2'!C18*1000000) -> 272.1908295 | D20: =csinterpolate(CSTableU1,'FT240-52x2'!D18*1000000) -> 272.3470565 | E20: =csinterpolate(CSTableU1,'FT240-52x2'!E18*1000000) -> 271.7845312 | F20: =csinterpolate(CSTableU1,'FT240-52x2'!F18*1000000) -> 270.4177738 | G20: =csinterpolate(CSTableU1,'FT240-52x2'!G18*1000000) -> 270.723567 | H20: =csinterpolate(CSTableU1,'FT240-52x2'!H18*1000000) -> 277.7487386 | I20: =csinterpolate(CSTableU1,'FT240-52x2'!I18*1000000) -> 284.4052224 | J20: =csinterpolate(CSTableU1,'FT240-52x2'!J18*1000000) -> 292.2264137 | K20: =csinterpolate(CSTableU1,'FT240-52x2'!K18*1000000) -> 298.9390829 | L20: =csinterpolate(CSTableU1,'FT240-52x2'!L18*1000000) -> 301.5249442 | M20: =csinterpolate(CSTableU1,'FT240-52x2'!M18*1000000) -> 305.3891618 | N20: =csinterpolate(CSTableU1,'FT240-52x2'!N18*1000000) -> 305.2435532 | O20: =csinterpolate(CSTableU1,'FT240-52x2'!O18*1000000) -> 296.2383215 | P20: =csinterpolate(CSTableU1,'FT240-52x2'!P18*1000000) -> 276.5143723 | Q20: =csinterpolate(CSTableU1,'FT240-52x2'!Q18*1000000) -> 260.2891656 | R20: =csinterpolate(CSTableU1,'FT240-52x2'!R18*1000000) -> 237.532035 | S20: =csinterpolate(CSTableU1,'FT240-52x2'!S18*1000000) -> 218.8742166 | T20: =csinterpolate(CSTableU1,'FT240-52x2'!T18*1000000) -> 203.3317219 | U20: =csinterpolate(CSTableU1,'FT240-52x2'!U18*1000000) -> 189.3765055 | V20: =csinterpolate(CSTableU1,'FT240-52x2'!V18*1000000) -> 177.3300299 | W20: =csinterpolate(CSTableU1,'FT240-52x2'!W18*1000000) -> 167.2096561 | X20: =csinterpolate(CSTableU1,'FT240-52x2'!X18*1000000) -> 158.8781002 | Y20: =csinterpolate(CSTableU1,'FT240-52x2'!Y18*1000000) -> 151.5012432 | Z20: =csinterpolate(CSTableU1,'FT240-52x2'!Z18*1000000) -> 144.6963794 | AA20: =csinterpolate(CSTableU1,'FT240-52x2'!AA18*1000000) -> 128.5557802 | AB20: =csinterpolate(CSTableU1,'FT240-52x2'!AB18*1000000) -> 121.0419581 | AC20: =csinterpolate(CSTableU1,'FT240-52x2'!AC18*1000000) -> 114.4356942 | AD20: =csinterpolate(CSTableU1,'FT240-52x2'!AD18*1000000) -> 108.4930625 | AE20: =csinterpolate(CSTableU1,'FT240-52x2'!AE18*1000000) -> 103.5410108
A21: Rl | B21: =B19/$B$13*$B$16*B18*1000000 -> 6.30695515 | C21: 8.165354715 | D21: 14.76627239 | E21: 17.21512501 | F21: 24.26420724 | G21: 35.90103535 | H21: 53.25564284 | I21: 82.1110174 | J21: 128.5141634 | K21: 212.0820582 | L21: 339.0456357 | M21: 512.4032505 | N21: 1031.055148 | O21: 1621.952791 | P21: 2315.217759 | Q21: 2842.995727 | R21: 3380.212347 | S21: 3747.136452 | T21: 4092.431499 | U21: 4393.89195 | V21: 4596.838711 | W21: 4771.027402 | X21: 4981.726321 | Y21: 5177.186258 | Z21: 5324.173933 | AA21: 5650.25488 | AB21: 5898.744967 | AC21: 6149.552067 | AD21: 6387.746588 | AE21: 6611.644223
A22: Xl | B22: =B20/$B$13*$B$16*B18*1000000 -> 562.1087478 | C22: 675.4432685 | D22: 1013.74642 | E22: 1124.058394 | F22: 1398.007124 | G22: 1679.505618 | H22: 2010.269494 | I22: 2352.511207 | J22: 2719.356366 | K22: 3090.913454 | L22: 3429.415275 | M22: 3789.125703 | N22: 4418.538903 | O22: 4900.781816 | P22: 5146.291256 | Q22: 5382.576785 | R22: 5403.174794 | S22: 5431.377557 | T22: 5466.163697 | U22: 5482.621651 | V22: 5500.569915 | W22: 5532.424285 | X22: 5585.307678 | Y22: 5639.269429 | Z22: 5685.195558 | AA22: 5848.553027 | AB22: 6007.327725 | AC22: 6152.746175 | AD22: 6281.945184 | AE22: 6423.441861
A23: Yl | B23: =IMDIV(1,COMPLEX(B21,B22)) -> 0.0000199583384852523-0.00177879125285312i | C23: 0.0000178950879260653-0.0014802929083073i | D23: 0.0000143654777533586-0.000986230733382038i | E23: 0.000013621677087023-0.000889424878706055i | F23: 0.000012411278768056-0.000715088523573692i | G23: 0.0000127217147613866-0.000595141371544516i | H23: 0.0000131689873117816-0.000497096871837091i | I23: 0.0000148186714920845-0.000424560453105272i | J23: 0.000017340030816393-0.000366914602571808i | K23: 0.0000220948160395112-0.000322012926186095i | L23: 0.0000285491893674193-0.000288772412345205i | M23: 0.0000350480283961516-0.000259173580762243i | N23: 0.0000500838950270796-0.000214632203779439i | O23: 0.0000608649375172311-0.000183905339725022i | P23: 0.0000727037430229686-0.000161606671998315i | Q23: 0.0000767241756493239-0.000145260072947093i | R23: 0.0000832151956844082-0.000133017160362337i | S23: 0.0000860601638741639-0.000124741985940884i | T23: 0.000087769675634087-0.000117231874197146i | U23: 0.0000890074744544819-0.000111061972409819i | V23: 0.0000894549442628005-0.000107041644493924i | W23: 0.0000893945994454294-0.000103660870334666i | X23: 0.0000889383408487184-0.0000997140280343785i | Y23: 0.000088340927750892-0.000096225684836399i | Z23: 0.0000877587798944983-0.0000937095278802414i | AA23: 0.00008544039739495-0.0000884389652188022i | AB23: 0.0000832178393452442-0.0000847496944306824i | AC23: 0.0000812645147942993-0.0000813067239880936i | AD23: 0.0000795820809053618-0.0000782639484824795i | AE23: 0.0000778074425547904-0.0000755926312412875i
A24: Yc | B24: =COMPLEX(0,2*PI()*B18*1000000*$B$9*0.000000000001) -> 8.79645943005142E-06i | C24: 0.0000105557513160617i | D24: 0.0000158336269740926i | E24: 0.0000175929188601028i | F24: 0.0000219911485751286i | G24: 0.0000263893782901543i | H24: 0.00003078760800518i | I24: 0.0000351858377202057i | J24: 0.0000395840674352314i | K24: 0.0000439822971502571i | L24: 0.0000483805268652828i | M24: 0.0000527787565803085i | N24: 0.0000615752160103599i | O24: 0.0000703716754404114i | P24: 0.0000791681348704628i | Q24: 0.0000879645943005142i | R24: 0.0000967610537305656i | S24: 0.000105557513160617i | T24: 0.000114353972590668i | U24: 0.00012315043202072i | V24: 0.000131946891450771i | W24: 0.000140743350880823i | X24: 0.000149539810310874i | Y24: 0.000158336269740926i | Z24: 0.000167132729170977i | AA24: 0.000193522107461131i | AB24: 0.000211115026321234i | AC24: 0.000228707945181337i | AD24: 0.00024630086404144i | AE24: 0.000263893782901543i
A25: Z | B25: =IMDIV(1,IMSUM(B23,B24)) -> 6.36979111238883+564.901587998008i | C25: 8.28304670901776+680.292914549214i | D25: 15.2519693225599+1030.28017249023i | E25: 17.9167405477623+1146.73009248532i | F25: 25.8278814206722+1442.3362128096i | G25: 39.3081459396941+1757.35636065288i | H25: 60.5143064163592+2142.79055847109i | I25: 97.5990141806386+2564.50644910018i | J25: 161.383745631967+3046.46677848554i | K25: 284.03445145333+3574.15409407344i | L25: 487.159974756031+4102.01856714013i | M25: 799.686911266864+4709.2874265544i | N25: 1931.14354283585+5901.59797787991i | O25: 3667.79241681661+6841.67157484733i | P25: 6017.55206417249+6823.28266241184i | Q25: 8367.44152125242+6248.57240824117i | R25: 10099.8213033628+4400.40061343228i | S25: 11069.6915962368+2467.64806797806i | T25: 11381.2203669789+373.181650053724i | U25: 11031.5301063192-1498.23604089424i | V25: 10374.6449481542-2888.41602499139i | W25: 9544.07237357979-3959.05211634664i | X25: 8557.82227363422-4794.33487625249i | Y25: 7575.21071987615-5325.96589785984i | Z25: 6702.94528279283-5608.00527686163i | AA25: 4658.04909997433-5728.93445101515i | AB25: 3635.01349464411-5519.72618240765i | AC25: 2868.39137755248-5202.81691192801i | AD25: 2302.07528321326-4860.81320788402i | AE25: 1874.36677798123-4536.13962030752i
A26: R | B26: =IMREAL(B25) -> 6.369791112 | C26: 8.283046709 | D26: 15.25196932 | E26: 17.91674055 | F26: 25.82788142 | G26: 39.30814594 | H26: 60.51430642 | I26: 97.59901418 | J26: 161.3837456 | K26: 284.0344515 | L26: 487.1599748 | M26: 799.6869113 | N26: 1931.143543 | O26: 3667.792417 | P26: 6017.552064 | Q26: 8367.441521 | R26: 10099.8213 | S26: 11069.6916 | T26: 11381.22037 | U26: 11031.53011 | V26: 10374.64495 | W26: 9544.072374 | X26: 8557.822274 | Y26: 7575.21072 | Z26: 6702.945283 | AA26: 4658.0491 | AB26: 3635.013495 | AC26: 2868.391378 | AD26: 2302.075283 | AE26: 1874.366778
A27: X | B27: =IMAGINARY(B25) -> 564.901588 | C27: 680.2929145 | D27: 1030.280172 | E27: 1146.730092 | F27: 1442.336213 | G27: 1757.356361 | H27: 2142.790558 | I27: 2564.506449 | J27: 3046.466778 | K27: 3574.154094 | L27: 4102.018567 | M27: 4709.287427 | N27: 5901.597978 | O27: 6841.671575 | P27: 6823.282662 | Q27: 6248.572408 | R27: 4400.400613 | S27: 2467.648068 | T27: 373.1816501 | U27: -1498.236041 | V27: -2888.416025 | W27: -3959.052116 | X27: -4794.334876 | Y27: -5325.965898 | Z27: -5608.005277 | AA27: -5728.934451 | AB27: -5519.726182 | AC27: -5202.816912 | AD27: -4860.813208 | AE27: -4536.13962
A28: |Z| | B28: =IMABS(B25) -> 564.9374995 | C28: 680.3433387 | D28: 1030.393059 | E28: 1146.870051 | F28: 1442.567444 | G28: 1757.795923 | H28: 2143.644877 | I28: 2566.36297 | J28: 3050.738361 | K28: 3585.422298 | L28: 4130.845091 | M28: 4776.702547 | N28: 6209.522854 | O28: 7762.806912 | P28: 9097.698563 | Q28: 10443.11901 | R28: 11016.80153 | S28: 11341.40022 | T28: 11387.3369 | U28: 11132.80592 | V28: 10769.2249 | W28: 10332.63815 | X28: 9809.279738 | Y28: 9260.115021 | Z28: 8739.51936 | AA28: 7383.638084 | AB28: 6609.137632 | AC28: 5941.12556 | AD28: 5378.38783 | AE28: 4908.137475
A32: Module | B32: Version | C32: Date
A33: CubicSpline | B33: =CubicSpline_version("v") -> 1.04 | C33: =CubicSpline_version("d") -> 2014-03-07
A35: Copyright: Owen Duffy 2010. All rights reserved.

Sheet FT150-52 (2)
A1: Calculate impedance of toroidal ferrite cored inductor
A3: Reference:
A4: A method for estimating the impedance of a ferrite cored toroidal inductor at RF
A6: Inputs:
A7: Al (nH for 1t) | B7: 510
A8: N | B8: 11
A9: Cs (pF) | B9: 4
A11: Constants:
A12: Mix | B12: =Mix!B1 -> 52
A13: µi | B13: =Mix!B2 -> 250
A15: Calculated values:
A16: 2*pi*N^2*Al | B16: =2*PI()*$B$8^2*$B$7*0.000000001 -> 0.0003877353653
A18: f (MHz) | B18: 1 | C18: 1.2 | D18: 1.8 | E18: 2 | F18: 2.5 | G18: 3 | H18: 3.5 | I18: 4 | J18: 4.5 | K18: 5 | L18: 5.5 | M18: 6 | N18: =M18+1 -> 7 | O18: 8 | P18: 9 | Q18: 10 | R18: 11 | S18: 12 | T18: 13 | U18: 14 | V18: 15 | W18: 16 | X18: 17 | Y18: 18 | Z18: 19 | AA18: 22 | AB18: 24 | AC18: 26 | AD18: 28 | AE18: 30
A19: µ'' | B19: =csinterpolate(CSTableU2,'FT150-52 (2)'!B18*1000000) -> 3.0499 | C19: =csinterpolate(CSTableU2,'FT150-52 (2)'!C18*1000000) -> 3.290483119 | D19: =csinterpolate(CSTableU2,'FT150-52 (2)'!D18*1000000) -> 3.967018517 | E19: =csinterpolate(CSTableU2,'FT150-52 (2)'!E18*1000000) -> 4.162421369 | F19: =csinterpolate(CSTableU2,'FT150-52 (2)'!F18*1000000) -> 4.693447403 | G19: =csinterpolate(CSTableU2,'FT150-52 (2)'!G18*1000000) -> 5.786974597 | H19: =csinterpolate(CSTableU2,'FT150-52 (2)'!H18*1000000) -> 7.358062023 | I19: =csinterpolate(CSTableU2,'FT150-52 (2)'!I18*1000000) -> 9.926754908 | J19: =csinterpolate(CSTableU2,'FT150-52 (2)'!J18*1000000) -> 13.81033893 | K19: =csinterpolate(CSTableU2,'FT150-52 (2)'!K18*1000000) -> 20.51161151 | L19: =csinterpolate(CSTableU2,'FT150-52 (2)'!L18*1000000) -> 29.80995539 | M19: =csinterpolate(CSTableU2,'FT150-52 (2)'!M18*1000000) -> 41.29775876 | N19: =csinterpolate(CSTableU2,'FT150-52 (2)'!N18*1000000) -> 71.22782978 | O19: =csinterpolate(CSTableU2,'FT150-52 (2)'!O18*1000000) -> 98.04243289 | P19: =csinterpolate(CSTableU2,'FT150-52 (2)'!P18*1000000) -> 124.3985141 | Q19: =csinterpolate(CSTableU2,'FT150-52 (2)'!Q18*1000000) -> 137.4808043 | R19: =csinterpolate(CSTableU2,'FT150-52 (2)'!R18*1000000) -> 148.5994342 | S19: =csinterpolate(CSTableU2,'FT150-52 (2)'!S18*1000000) -> 151.0024937 | T19: =csinterpolate(CSTableU2,'FT150-52 (2)'!T18*1000000) -> 152.2312886 | U19: =csinterpolate(CSTableU2,'FT150-52 (2)'!U18*1000000) -> 151.7704405 | V19: =csinterpolate(CSTableU2,'FT150-52 (2)'!V18*1000000) -> 148.1951068 | W19: =csinterpolate(CSTableU2,'FT150-52 (2)'!W18*1000000) -> 144.1975181 | X19: =csinterpolate(CSTableU2,'FT150-52 (2)'!X18*1000000) -> 141.7087937 | Y19: =csinterpolate(CSTableU2,'FT150-52 (2)'!Y18*1000000) -> 139.0871928 | Z19: =csinterpolate(CSTableU2,'FT150-52 (2)'!Z18*1000000) -> 135.5078614 | AA19: =csinterpolate(CSTableU2,'FT150-52 (2)'!AA18*1000000) -> 124.1970315 | AB19: =csinterpolate(CSTableU2,'FT150-52 (2)'!AB18*1000000) -> 118.8541185 | AC19: =csinterpolate(CSTableU2,'FT150-52 (2)'!AC18*1000000) -> 114.3762866 | AD19: =csinterpolate(CSTableU2,'FT150-52 (2)'!AD18*1000000) -> 110.3203179 | AE19: =csinterpolate(CSTableU2,'FT150-52 (2)'!AE18*1000000) -> 106.5746901
A20: µ' | B20: =csinterpolate(CSTableU1,'FT150-52 (2)'!B18*1000000) -> 271.823 | C20: =csinterpolate(CSTableU1,'FT150-52 (2)'!C18*1000000) -> 272.1908295 | D20: =csinterpolate(CSTableU1,'FT150-52 (2)'!D18*1000000) -> 272.3470565 | E20: =csinterpolate(CSTableU1,'FT150-52 (2)'!E18*1000000) -> 271.7845312 | F20: =csinterpolate(CSTableU1,'FT150-52 (2)'!F18*1000000) -> 270.4177738 | G20: =csinterpolate(CSTableU1,'FT150-52 (2)'!G18*1000000) -> 270.723567 | H20: =csinterpolate(CSTableU1,'FT150-52 (2)'!H18*1000000) -> 277.7487386 | I20: =csinterpolate(CSTableU1,'FT150-52 (2)'!I18*1000000) -> 284.4052224 | J20: =csinterpolate(CSTableU1,'FT150-52 (2)'!J18*1000000) -> 292.2264137 | K20: =csinterpolate(CSTableU1,'FT150-52 (2)'!K18*1000000) -> 298.9390829 | L20: =csinterpolate(CSTableU1,'FT150-52 (2)'!L18*1000000) -> 301.5249442 | M20: =csinterpolate(CSTableU1,'FT150-52 (2)'!M18*1000000) -> 305.3891618 | N20: =csinterpolate(CSTableU1,'FT150-52 (2)'!N18*1000000) -> 305.2435532 | O20: =csinterpolate(CSTableU1,'FT150-52 (2)'!O18*1000000) -> 296.2383215 | P20: =csinterpolate(CSTableU1,'FT150-52 (2)'!P18*1000000) -> 276.5143723 | Q20: =csinterpolate(CSTableU1,'FT150-52 (2)'!Q18*1000000) -> 260.2891656 | R20: =csinterpolate(CSTableU1,'FT150-52 (2)'!R18*1000000) -> 237.532035 | S20: =csinterpolate(CSTableU1,'FT150-52 (2)'!S18*1000000) -> 218.8742166 | T20: =csinterpolate(CSTableU1,'FT150-52 (2)'!T18*1000000) -> 203.3317219 | U20: =csinterpolate(CSTableU1,'FT150-52 (2)'!U18*1000000) -> 189.3765055 | V20: =csinterpolate(CSTableU1,'FT150-52 (2)'!V18*1000000) -> 177.3300299 | W20: =csinterpolate(CSTableU1,'FT150-52 (2)'!W18*1000000) -> 167.2096561 | X20: =csinterpolate(CSTableU1,'FT150-52 (2)'!X18*1000000) -> 158.8781002 | Y20: =csinterpolate(CSTableU1,'FT150-52 (2)'!Y18*1000000) -> 151.5012432 | Z20: =csinterpolate(CSTableU1,'FT150-52 (2)'!Z18*1000000) -> 144.6963794 | AA20: =csinterpolate(CSTableU1,'FT150-52 (2)'!AA18*1000000) -> 128.5557802 | AB20: =csinterpolate(CSTableU1,'FT150-52 (2)'!AB18*1000000) -> 121.0419581 | AC20: =csinterpolate(CSTableU1,'FT150-52 (2)'!AC18*1000000) -> 114.4356942 | AD20: =csinterpolate(CSTableU1,'FT150-52 (2)'!AD18*1000000) -> 108.4930625 | AE20: =csinterpolate(CSTableU1,'FT150-52 (2)'!AE18*1000000) -> 103.5410108
A21: Rl | B21: =B19/$B$13*$B$16*B18*1000000 -> 4.730216363 | C21: 6.124016036 | D21: 11.07470429 | E21: 12.91134376 | F21: 18.19815543 | G21: 26.92577651 | H21: 39.94173213 | I21: 61.58326305 | J21: 96.38562256 | K21: 159.0615437 | L21: 254.2842268 | M21: 384.3024379 | N21: 773.2913608 | O21: 1216.464593 | P21: 1736.413319 | Q21: 2132.246795 | R21: 2535.15926 | S21: 2810.352339 | T21: 3069.323624 | U21: 3295.418962 | V21: 3447.629033 | W21: 3578.270552 | X21: 3736.294741 | Y21: 3882.889694 | Z21: 3993.13045 | AA21: 4237.69116 | AB21: 4424.058725 | AC21: 4612.164051 | AD21: 4790.809941 | AE21: 4958.733167
A22: Xl | B22: =B20/$B$13*$B$16*B18*1000000 -> 421.5815608 | C22: 506.5824513 | D22: 760.3098151 | E22: 843.0437958 | F22: 1048.505343 | G22: 1259.629214 | H22: 1507.702121 | I22: 1764.383405 | J22: 2039.517275 | K22: 2318.185091 | L22: 2572.061456 | M22: 2841.844277 | N22: 3313.904177 | O22: 3675.586362 | P22: 3859.718442 | Q22: 4036.932589 | R22: 4052.381096 | S22: 4073.533168 | T22: 4099.622772 | U22: 4111.966238 | V22: 4125.427436 | W22: 4149.318214 | X22: 4188.980759 | Y22: 4229.452072 | Z22: 4263.896669 | AA22: 4386.41477 | AB22: 4505.495793 | AC22: 4614.559631 | AD22: 4711.458888 | AE22: 4817.581396
A23: Yl | B23: =IMDIV(1,COMPLEX(B21,B22)) -> 0.0000266111179803364-0.00237172167047082i | C23: 0.0000238601172347536-0.00197372387774306i | D23: 0.0000191539703378117-0.00131497431117606i | E23: 0.0000181622361160307-0.00118589983827474i | F23: 0.0000165483716907413-0.000953451364764921i | G23: 0.0000169622863485152-0.000793521828726016i | H23: 0.0000175586497490422-0.000662795829116124i | I23: 0.0000197582286561126-0.000566080604140361i | J23: 0.0000231200410885241-0.000489219470095745i | K23: 0.0000294597547193483-0.000429350568248128i | L23: 0.0000380655858232258-0.000385029883126941i | M23: 0.0000467307045282022-0.000345564774349658i | N23: 0.0000667785267027729-0.000286176271705919i | O23: 0.0000811532500229746-0.000245207119633363i | P23: 0.0000969383240306245-0.000215475562664419i | Q23: 0.000102298900865765-0.000193680097262791i | R23: 0.000110953594245878-0.000177356213816449i | S23: 0.000114746885165552-0.000166322647921179i | T23: 0.000117026234178783-0.000156309165596195i | U23: 0.000118676632605976-0.000148082629879759i | V23: 0.000119273259017067-0.000142722192658566i | W23: 0.000119192799260573-0.000138214493779554i | X23: 0.000118584454464958-0.000132952037379171i | Y23: 0.000117787903667856-0.000128300913115199i | Z23: 0.000117011706525998-0.000124946037173655i | AA23: 0.000113920529859933-0.000117918620291736i | AB23: 0.000110957119126992-0.000112999592574243i | AC23: 0.000108352686392399-0.000108408965317458i | AD23: 0.000106109441207149-0.000104351931309973i | AE23: 0.000103743256739721-0.000100790174988383i
A24: Yc | B24: =COMPLEX(0,2*PI()*B18*1000000*$B$9*0.000000000001) -> 0.0000251327412287183i | C24: 0.000030159289474462i | D24: 0.000045238934211693i | E24: 0.0000502654824574367i | F24: 0.0000628318530717959i | G24: 0.000075398223686155i | H24: 0.0000879645943005142i | I24: 0.000100530964914873i | J24: 0.000113097335529233i | K24: 0.000125663706143592i | L24: 0.000138230076757951i | M24: 0.00015079644737231i | N24: 0.000175929188601028i | O24: 0.000201061929829747i | P24: 0.000226194671058465i | Q24: 0.000251327412287183i | R24: 0.000276460153515902i | S24: 0.00030159289474462i | T24: 0.000326725635973338i | U24: 0.000351858377202057i | V24: 0.000376991118430775i | W24: 0.000402123859659493i | X24: 0.000427256600888212i | Y24: 0.00045238934211693i | Z24: 0.000477522083345648i | AA24: 0.000552920307031803i | AB24: 0.00060318578948924i | AC24: 0.000653451271946677i | AD24: 0.000703716754404114i | AE24: 0.00075398223686155i
A25: Z | B25: =IMDIV(1,IMSUM(B23,B24)) -> 4.8320702265641+426.095683291257i | C25: 6.31552079697937+514.441000298369i | D25: 11.8777329016149+787.386499891447i | E25: 14.0793045698537+880.339946766185i | F25: 20.8555162379375+1122.42642569674i | G25: 32.8733340163848+1391.74145798996i | H25: 53.0891011559378+1738.01938126724i | I25: 90.9985488920473+2144.13661994084i | J25: 162.814443086152+2648.70272666676i | K25: 316.45310438482+3262.16735982353i | L25: 610.425190997127+3957.71707390678i | M25: 1164.81800644781+4854.83060098128i | N25: 4019.46352019229+6635.87758861587i | O25: 9508.68180973727+5172.46768495664i | P25: 10191.2275430905-1126.91109316335i | Q25: 7419.2658800933-4180.89298926763i | R25: 5013.19969751486-4477.79852379398i | S25: 3646.82332909455-4299.08568878694i | T25: 2738.29404938585-3987.57090686316i | U25: 2134.1379349626-3664.45814172832i | V25: 1725.89555703436-3389.89394163878i | W25: 1421.41422817317-3147.20796840946i | X25: 1177.86510991253-2923.2421619629i | Y25: 990.58597415948-2725.55535975725i | Z25: 847.901038203363-2554.8691192573i | AA25: 563.393058921858-2151.29732305476i | AB25: 439.270622223925-1940.6091057392i | AC25: 350.870075204372-1764.96810078143i | AD25: 286.397259111577-1617.73015284235i | AE25: 237.169438952104-1493.27483742963i
A26: R | B26: =IMREAL(B25) -> 4.832070227 | C26: 6.315520797 | D26: 11.8777329 | E26: 14.07930457 | F26: 20.85551624 | G26: 32.87333402 | H26: 53.08910116 | I26: 90.99854889 | J26: 162.8144431 | K26: 316.4531044 | L26: 610.425191 | M26: 1164.818006 | N26: 4019.46352 | O26: 9508.68181 | P26: 10191.22754 | Q26: 7419.26588 | R26: 5013.199698 | S26: 3646.823329 | T26: 2738.294049 | U26: 2134.137935 | V26: 1725.895557 | W26: 1421.414228 | X26: 1177.86511 | Y26: 990.5859742 | Z26: 847.9010382 | AA26: 563.3930589 | AB26: 439.2706222 | AC26: 350.8700752 | AD26: 286.3972591 | AE26: 237.169439
A27: X | B27: =IMAGINARY(B25) -> 426.0956833 | C27: 514.4410003 | D27: 787.3864999 | E27: 880.3399468 | F27: 1122.426426 | G27: 1391.741458 | H27: 1738.019381 | I27: 2144.13662 | J27: 2648.702727 | K27: 3262.16736 | L27: 3957.717074 | M27: 4854.830601 | N27: 6635.877589 | O27: 5172.467685 | P27: -1126.911093 | Q27: -4180.892989 | R27: -4477.798524 | S27: -4299.085689 | T27: -3987.570907 | U27: -3664.458142 | V27: -3389.893942 | W27: -3147.207968 | X27: -2923.242162 | Y27: -2725.55536 | Z27: -2554.869119 | AA27: -2151.297323 | AB27: -1940.609106 | AC27: -1764.968101 | AD27: -1617.730153 | AE27: -1493.274837
A28: |Z| | B28: =IMABS(B25) -> 426.1230811 | C28: 514.479765 | D28: 787.4760827 | E28: 880.4525249 | F28: 1122.620164 | G28: 1392.129643 | H28: 1738.830015 | I28: 2146.06677 | J28: 2653.70207 | K28: 3277.480503 | L28: 4004.51537 | M28: 4992.612658 | N28: 7758.28321 | O28: 10824.4839 | P28: 10253.34323 | Q28: 8516.182971 | R28: 6721.819012 | S28: 5637.504603 | T28: 4837.248809 | U28: 4240.612951 | V28: 3803.957993 | W28: 3453.308038 | X28: 3151.62037 | Y28: 2899.984929 | Z28: 2691.893829 | AA28: 2223.846198 | AB28: 1989.704094 | AC28: 1799.506101 | AD28: 1642.885948 | AE28: 1511.99176
A32: Module | B32: Version | C32: Date
A33: CubicSpline | B33: =CubicSpline_version("v") -> 1.04 | C33: =CubicSpline_version("d") -> 2014-03-07
A35: Copyright: Owen Duffy 2010. All rights reserved.

Sheet FT94-52
A1: Calculate impedance of toroidal ferrite cored inductor
A3: Reference:
A4: A method for estimating the impedance of a ferrite cored toroidal inductor at RF
A6: Inputs:
A7: Al (nH for 1t) | B7: 180
A8: N | B8: 11
A9: Cs (pF) | B9: 4
A11: Constants:
A12: Mix | B12: =Mix!B1 -> 52
A13: µi | B13: =Mix!B2 -> 250
A15: Calculated values:
A16: 2*pi*N^2*Al | B16: =2*PI()*$B$8^2*$B$7*0.000000001 -> 0.000136847776
A18: f (MHz) | B18: 1 | C18: 1.2 | D18: 1.8 | E18: 2 | F18: 2.5 | G18: 3 | H18: 3.5 | I18: 4 | J18: 4.5 | K18: 5 | L18: 5.5 | M18: 6 | N18: =M18+1 -> 7 | O18: 8 | P18: 9 | Q18: 10 | R18: 11 | S18: 12 | T18: 13 | U18: 14 | V18: 15 | W18: 16 | X18: 17 | Y18: 18 | Z18: 19 | AA18: 22 | AB18: 24 | AC18: 26 | AD18: 28 | AE18: 30
A19: µ'' | B19: =csinterpolate(CSTableU2,'FT94-52'!B18*1000000) -> 3.0499 | C19: =csinterpolate(CSTableU2,'FT94-52'!C18*1000000) -> 3.290483119 | D19: =csinterpolate(CSTableU2,'FT94-52'!D18*1000000) -> 3.967018517 | E19: =csinterpolate(CSTableU2,'FT94-52'!E18*1000000) -> 4.162421369 | F19: =csinterpolate(CSTableU2,'FT94-52'!F18*1000000) -> 4.693447403 | G19: =csinterpolate(CSTableU2,'FT94-52'!G18*1000000) -> 5.786974597 | H19: =csinterpolate(CSTableU2,'FT94-52'!H18*1000000) -> 7.358062023 | I19: =csinterpolate(CSTableU2,'FT94-52'!I18*1000000) -> 9.926754908 | J19: =csinterpolate(CSTableU2,'FT94-52'!J18*1000000) -> 13.81033893 | K19: =csinterpolate(CSTableU2,'FT94-52'!K18*1000000) -> 20.51161151 | L19: =csinterpolate(CSTableU2,'FT94-52'!L18*1000000) -> 29.80995539 | M19: =csinterpolate(CSTableU2,'FT94-52'!M18*1000000) -> 41.29775876 | N19: =csinterpolate(CSTableU2,'FT94-52'!N18*1000000) -> 71.22782978 | O19: =csinterpolate(CSTableU2,'FT94-52'!O18*1000000) -> 98.04243289 | P19: =csinterpolate(CSTableU2,'FT94-52'!P18*1000000) -> 124.3985141 | Q19: =csinterpolate(CSTableU2,'FT94-52'!Q18*1000000) -> 137.4808043 | R19: =csinterpolate(CSTableU2,'FT94-52'!R18*1000000) -> 148.5994342 | S19: =csinterpolate(CSTableU2,'FT94-52'!S18*1000000) -> 151.0024937 | T19: =csinterpolate(CSTableU2,'FT94-52'!T18*1000000) -> 152.2312886 | U19: =csinterpolate(CSTableU2,'FT94-52'!U18*1000000) -> 151.7704405 | V19: =csinterpolate(CSTableU2,'FT94-52'!V18*1000000) -> 148.1951068 | W19: =csinterpolate(CSTableU2,'FT94-52'!W18*1000000) -> 144.1975181 | X19: =csinterpolate(CSTableU2,'FT94-52'!X18*1000000) -> 141.7087937 | Y19: =csinterpolate(CSTableU2,'FT94-52'!Y18*1000000) -> 139.0871928 | Z19: =csinterpolate(CSTableU2,'FT94-52'!Z18*1000000) -> 135.5078614 | AA19: =csinterpolate(CSTableU2,'FT94-52'!AA18*1000000) -> 124.1970315 | AB19: =csinterpolate(CSTableU2,'FT94-52'!AB18*1000000) -> 118.8541185 | AC19: =csinterpolate(CSTableU2,'FT94-52'!AC18*1000000) -> 114.3762866 | AD19: =csinterpolate(CSTableU2,'FT94-52'!AD18*1000000) -> 110.3203179 | AE19: =csinterpolate(CSTableU2,'FT94-52'!AE18*1000000) -> 106.5746901
A20: µ' | B20: =csinterpolate(CSTableU1,'FT94-52'!B18*1000000) -> 271.823 | C20: =csinterpolate(CSTableU1,'FT94-52'!C18*1000000) -> 272.1908295 | D20: =csinterpolate(CSTableU1,'FT94-52'!D18*1000000) -> 272.3470565 | E20: =csinterpolate(CSTableU1,'FT94-52'!E18*1000000) -> 271.7845312 | F20: =csinterpolate(CSTableU1,'FT94-52'!F18*1000000) -> 270.4177738 | G20: =csinterpolate(CSTableU1,'FT94-52'!G18*1000000) -> 270.723567 | H20: =csinterpolate(CSTableU1,'FT94-52'!H18*1000000) -> 277.7487386 | I20: =csinterpolate(CSTableU1,'FT94-52'!I18*1000000) -> 284.4052224 | J20: =csinterpolate(CSTableU1,'FT94-52'!J18*1000000) -> 292.2264137 | K20: =csinterpolate(CSTableU1,'FT94-52'!K18*1000000) -> 298.9390829 | L20: =csinterpolate(CSTableU1,'FT94-52'!L18*1000000) -> 301.5249442 | M20: =csinterpolate(CSTableU1,'FT94-52'!M18*1000000) -> 305.3891618 | N20: =csinterpolate(CSTableU1,'FT94-52'!N18*1000000) -> 305.2435532 | O20: =csinterpolate(CSTableU1,'FT94-52'!O18*1000000) -> 296.2383215 | P20: =csinterpolate(CSTableU1,'FT94-52'!P18*1000000) -> 276.5143723 | Q20: =csinterpolate(CSTableU1,'FT94-52'!Q18*1000000) -> 260.2891656 | R20: =csinterpolate(CSTableU1,'FT94-52'!R18*1000000) -> 237.532035 | S20: =csinterpolate(CSTableU1,'FT94-52'!S18*1000000) -> 218.8742166 | T20: =csinterpolate(CSTableU1,'FT94-52'!T18*1000000) -> 203.3317219 | U20: =csinterpolate(CSTableU1,'FT94-52'!U18*1000000) -> 189.3765055 | V20: =csinterpolate(CSTableU1,'FT94-52'!V18*1000000) -> 177.3300299 | W20: =csinterpolate(CSTableU1,'FT94-52'!W18*1000000) -> 167.2096561 | X20: =csinterpolate(CSTableU1,'FT94-52'!X18*1000000) -> 158.8781002 | Y20: =csinterpolate(CSTableU1,'FT94-52'!Y18*1000000) -> 151.5012432 | Z20: =csinterpolate(CSTableU1,'FT94-52'!Z18*1000000) -> 144.6963794 | AA20: =csinterpolate(CSTableU1,'FT94-52'!AA18*1000000) -> 128.5557802 | AB20: =csinterpolate(CSTableU1,'FT94-52'!AB18*1000000) -> 121.0419581 | AC20: =csinterpolate(CSTableU1,'FT94-52'!AC18*1000000) -> 114.4356942 | AD20: =csinterpolate(CSTableU1,'FT94-52'!AD18*1000000) -> 108.4930625 | AE20: =csinterpolate(CSTableU1,'FT94-52'!AE18*1000000) -> 103.5410108
A21: Rl | B21: =B19/$B$13*$B$16*B18*1000000 -> 1.669488128 | C21: 2.161417424 | D21: 3.908719162 | E21: 4.556944856 | F21: 6.422878388 | G21: 9.50321524 | H21: 14.09708193 | I21: 21.73526931 | J21: 34.01845502 | K21: 56.13936835 | L21: 89.74737415 | M21: 135.6361545 | N21: 272.9263626 | O21: 429.3404446 | P21: 612.8517597 | Q21: 752.5576925 | R21: 894.7620919 | S21: 991.8890609 | T21: 1083.290691 | U21: 1163.089046 | V21: 1216.810247 | W21: 1262.919018 | X21: 1318.692261 | Y21: 1370.431657 | Z21: 1409.340159 | AA21: 1495.655703 | AB21: 1561.432491 | AC21: 1627.822606 | AD21: 1690.874097 | AE21: 1750.141118
A22: Xl | B22: =B20/$B$13*$B$16*B18*1000000 -> 148.7934921 | C22: 178.7938064 | D22: 268.3446406 | E22: 297.5448691 | F22: 370.0607093 | G22: 444.5750166 | H22: 532.1301602 | I22: 622.7235547 | J22: 719.8296264 | K22: 818.1829731 | L22: 907.7863964 | M22: 1003.003862 | N22: 1169.613239 | O22: 1297.265775 | P22: 1362.253568 | Q22: 1424.799737 | R22: 1430.252151 | S22: 1437.717589 | T22: 1446.925684 | U22: 1451.282202 | V22: 1456.033213 | W22: 1464.465252 | X22: 1478.463797 | Y22: 1492.74779 | Z22: 1504.904707 | AA22: 1548.146389 | AB22: 1590.174986 | AC22: 1628.668105 | AD22: 1662.867843 | AE22: 1700.322846
A23: Yl | B23: =IMDIV(1,COMPLEX(B21,B22)) -> 0.0000753981676109526-0.00671987806633399i | C23: 0.0000676036654984688-0.00559221765360535i | D23: 0.0000542695826237996-0.00372576054833216i | E23: 0.0000514596689954205-0.00336004954177843i | F23: 0.0000468870531237671-0.00270144553350061i | G23: 0.0000480598113207935-0.00224831184805706i | H23: 0.0000497495076222858-0.00187792151582901i | I23: 0.0000559816478589858-0.00160389504506436i | J23: 0.0000655067830841513-0.00138612183193794i | K23: 0.0000834693050381535-0.00121649327670303i | L23: 0.000107852493165807-0.001090918002193i | M23: 0.000132403662829907-0.000979100193990702i | N23: 0.000189205825657856-0.000810832769833435i | O23: 0.000229934208398428-0.00069475350562786i | P23: 0.000274658584753437-0.000610514094215856i | Q23: 0.000289846885786335-0.000548760275577908i | R23: 0.000314368517029987-0.000502509272479938i | S23: 0.000325116174635731-0.000471247502443341i | T23: 0.000331574330173219-0.000442875969189218i | U23: 0.000336250459050264-0.000419567451325984i | V23: 0.000337940900548357-0.000404379545865936i | W23: 0.00033771293123829-0.000391607732375404i | X23: 0.000335989287650713-0.000376697439240985i | Y23: 0.000333732393725593-0.000363519253826397i | Z23: 0.000331533168490327-0.000354013771992022i | AA23: 0.000322774834603144-0.000334102757493253i | AB23: 0.000314378504193145-0.00032016551229369i | AC23: 0.000306999278111798-0.000307158735066133i | AD23: 0.00030064341675359-0.000295663805378257i | AE23: 0.000293939227429208-0.000285572162467086i
A24: Yc | B24: =COMPLEX(0,2*PI()*B18*1000000*$B$9*0.000000000001) -> 0.0000251327412287183i | C24: 0.000030159289474462i | D24: 0.000045238934211693i | E24: 0.0000502654824574367i | F24: 0.0000628318530717959i | G24: 0.000075398223686155i | H24: 0.0000879645943005142i | I24: 0.000100530964914873i | J24: 0.000113097335529233i | K24: 0.000125663706143592i | L24: 0.000138230076757951i | M24: 0.00015079644737231i | N24: 0.000175929188601028i | O24: 0.000201061929829747i | P24: 0.000226194671058465i | Q24: 0.000251327412287183i | R24: 0.000276460153515902i | S24: 0.00030159289474462i | T24: 0.000326725635973338i | U24: 0.000351858377202057i | V24: 0.000376991118430775i | W24: 0.000402123859659493i | X24: 0.000427256600888212i | Y24: 0.00045238934211693i | Z24: 0.000477522083345648i | AA24: 0.000552920307031803i | AB24: 0.00060318578948924i | AC24: 0.000653451271946677i | AD24: 0.000703716754404114i | AE24: 0.00075398223686155i
A25: Z | B25: =IMDIV(1,IMSUM(B23,B24)) -> 1.6820449134842+149.351936233655i | C25: 2.1849173185337+179.762998897745i | D25: 4.00537629885859+271.641559192127i | E25: 4.69637424946282+302.061496525772i | F25: 6.73231158952258+378.867262443055i | G25: 10.1738360348366+459.986552686433i | H25: 15.5155891293518+558.241427523894i | I25: 24.7352068884056+664.253786254461i | J25: 40.314781406319+783.45633660071i | K25: 69.7392927320873+911.397102291542i | L25: 117.327071453312+1036.37923444557i | M25: 188.175537665171+1177.20688037329i | N25: 431.089590573596+1446.57451183414i | O25: 775.230432173356+1664.4967111772i | P25: 1230.88695216525+1722.33379798695i | Q25: 1680.49074899676+1724.4731605505i | R25: 2096.82778210382+1507.74027005595i | S25: 2417.5223625974+1261.53000074169i | T25: 2686.28198564181+941.003326708409i | U25: 2858.08441753819+575.51817245432i | V25: 2939.78788573683+238.255171400146i | W25: 2958.22633377542-92.1169484006986i | X25: 2910.3832962314-437.950092273547i | Y25: 2798.00314508954-745.084358654596i | Z25: 2648.69395954067-986.736017168558i | AA25: 2122.61494763724-1438.97649897937i | AB25: 1756.94915363525-1581.69922513162i | AC25: 1433.4569121404-1616.92702884233i | AD25: 1170.30292320874-1588.4118276247i | AE25: 961.187969524973-1531.71161348544i
A26: R | B26: =IMREAL(B25) -> 1.682044913 | C26: 2.184917319 | D26: 4.005376299 | E26: 4.696374249 | F26: 6.73231159 | G26: 10.17383603 | H26: 15.51558913 | I26: 24.73520689 | J26: 40.31478141 | K26: 69.73929273 | L26: 117.3270715 | M26: 188.1755377 | N26: 431.0895906 | O26: 775.2304322 | P26: 1230.886952 | Q26: 1680.490749 | R26: 2096.827782 | S26: 2417.522363 | T26: 2686.281986 | U26: 2858.084418 | V26: 2939.787886 | W26: 2958.226334 | X26: 2910.383296 | Y26: 2798.003145 | Z26: 2648.69396 | AA26: 2122.614948 | AB26: 1756.949154 | AC26: 1433.456912 | AD26: 1170.302923 | AE26: 961.1879695
A27: X | B27: =IMAGINARY(B25) -> 149.3519362 | C27: 179.7629989 | D27: 271.6415592 | E27: 302.0614965 | F27: 378.8672624 | G27: 459.9865527 | H27: 558.2414275 | I27: 664.2537863 | J27: 783.4563366 | K27: 911.3971023 | L27: 1036.379234 | M27: 1177.20688 | N27: 1446.574512 | O27: 1664.496711 | P27: 1722.333798 | Q27: 1724.473161 | R27: 1507.74027 | S27: 1261.530001 | T27: 941.0033267 | U27: 575.5181725 | V27: 238.2551714 | W27: -92.1169484 | X27: -437.9500923 | Y27: -745.0843587 | Z27: -986.7360172 | AA27: -1438.976499 | AB27: -1581.699225 | AC27: -1616.927029 | AD27: -1588.411828 | AE27: -1531.711613
A28: |Z| | B28: =IMABS(B25) -> 149.3614078 | C28: 179.7762766 | D28: 271.6710874 | E28: 302.0980033 | F28: 378.9270729 | G28: 460.0990498 | H28: 558.4570036 | I28: 664.7141664 | J28: 784.4929018 | K28: 914.0614022 | L28: 1042.999309 | M28: 1192.151866 | N28: 1509.442299 | O28: 1836.173065 | P28: 2116.959235 | Q28: 2407.873925 | R28: 2582.628016 | S28: 2726.879593 | T28: 2846.33065 | U28: 2915.453259 | V28: 2949.426782 | W28: 2959.660213 | X28: 2943.14988 | Y28: 2895.508988 | Z28: 2826.522184 | AA28: 2564.400043 | AB28: 2364.031042 | AC28: 2160.845144 | AD28: 1972.982784 | AE28: 1808.320431
A32: Module | B32: Version | C32: Date
A33: CubicSpline | B33: =CubicSpline_version("v") -> 1.04 | C33: =CubicSpline_version("d") -> 2014-03-07
A35: Copyright: Owen Duffy 2010. All rights reserved.

Sheet Mix
A1: Mix | B1: 52
A2: µi | B2: 250
A5: # #F14 mix u' | E5: CSTable | J5: # #52 mix u'' | N5: CSTable
A6: 1000000 | B6: 271.823 | E6: =cstable(A6:A47,B6:B47) -> 1000000 | F6: 271.823 | G6: 0 | J6: 1000000 | K6: 3.0499 | N6: =cstable(J6:J47,K6:K47) -> 1000000 | O6: 3.0499 | P6: 0
A7: 1912110 | B7: 272.075 | E7: 1912110 | F7: 272.075 | G7: -1.079985134e-11 | J7: 1912110 | K7: 4.07905 | N7: 1912110 | O7: 4.07905 | P7: -5.154987143e-13
A8: 2026390 | B8: 271.695 | E8: 2026390 | F8: 271.695 | G8: 4.909227315e-12 | J8: 2026390 | K8: 4.18665 | N8: 2026390 | O8: 4.18665 | P8: -5.461955153e-13
A9: 2735110 | B9: 269.74 | E9: 2735110 | F9: 269.74 | G9: -4.86277898e-12 | J9: 2735110 | K9: 5.15291 | N9: 2735110 | O9: 5.15291 | P9: 4.922947906e-12
A10: 2815660 | B10: 269.552 | E10: 2815660 | F10: 269.552 | G10: 8.372519273e-11 | J10: 2815660 | K10: 5.3582 | N10: 2815660 | O10: 5.3582 | P10: -3.385170503e-12
A11: 3383860 | B11: 276.448 | E11: 3383860 | F11: 276.448 | G11: -3.769550606e-11 | J11: 3383860 | K11: 6.86231 | N11: 3383860 | O11: 6.86231 | P11: 8.072841446e-12
A12: 3763830 | B12: 280.521 | E12: 3763830 | F12: 280.521 | G12: 4.05479789e-11 | J12: 3763830 | K12: 8.68319 | N12: 3763830 | O12: 8.68319 | P12: -1.35611969e-12
A13: 4027560 | B13: 284.888 | E13: 4027560 | F13: 284.888 | G13: -1.077731339e-11 | J13: 4027560 | K13: 10.0861 | N13: 4027560 | O13: 10.0861 | P13: 6.985874328e-12
A14: 4793720 | B14: 296.432 | E14: 4793720 | F14: 296.432 | G14: 3.338283959e-12 | J14: 4793720 | K14: 17.3598 | N14: 4793720 | O14: 17.3598 | P14: 1.437503656e-11
A15: 4887370 | B15: 297.743 | E15: 4887370 | F15: 297.743 | G15: -4.157964132e-11 | J15: 4887370 | K15: 18.7334 | N15: 4887370 | O15: 18.7334 | P15: 1.035899696e-11
A16: 5489030 | B16: 301.463 | E16: 5489030 | F16: 301.463 | G16: 1.763890122e-11 | J16: 5489030 | K16: 29.584 | N16: 5489030 | O16: 29.584 | P16: 7.397378214e-12
A17: 6470300 | B17: 306.812 | E17: 6470300 | F17: 306.812 | G17: -3.588844483e-11 | J17: 6470300 | K17: 55.0465 | N17: 6470300 | O17: 55.0465 | P17: 1.817319185e-11
A18: 6660850 | B18: 305.87 | E18: 6660850 | F18: 305.87 | G18: 2.32640754e-11 | J18: 6660850 | K18: 61.4213 | N18: 6660850 | O18: 61.4213 | P18: -2.525804835e-11
A19: 7776000 | B19: 300.895 | E19: 7776000 | F19: 300.895 | G19: -4.575120528e-11 | J19: 7776000 | K19: 91.1683 | N19: 7776000 | O19: 91.1683 | P19: 1.956647891e-11
A20: 8082820 | B20: 294.333 | E20: 8082820 | F20: 294.333 | G20: 8.525041925e-12 | J20: 8082820 | K20: 100.629 | N20: 8082820 | O20: 100.629 | P20: -8.223851932e-12
A21: 9255220 | B21: 272.473 | E21: 9255220 | F21: 272.473 | G21: 4.491874819e-12 | J21: 9255220 | K21: 128.811 | N21: 9255220 | O21: 128.811 | P21: -1.915262406e-11
A22: 9903720 | B22: 262.159 | E22: 9903720 | F22: 262.159 | G22: -1.527610879e-11 | J22: 9903720 | K22: 136.364 | N22: 9903720 | O22: 136.364 | P22: 7.780583734e-12
A23: 10909800 | B23: 239.519 | E23: 10909800 | F23: 239.519 | G23: 7.996771548e-12 | J23: 10909800 | K23: 147.929 | N23: 10909800 | O23: 147.929 | P23: -1.415128601e-11
A24: 12492200 | B24: 211.069 | E24: 12492200 | F24: 211.069 | G24: 7.046194406e-13 | J24: 12492200 | K24: 151.221 | N24: 12492200 | O24: 151.221 | P24: 5.652425992e-12
A25: 13111300 | B25: 201.685 | E25: 13111300 | F25: 201.685 | G25: 1.894143966e-12 | J25: 13111300 | K25: 152.414 | N25: 13111300 | O25: 152.414 | P25: -5.516067298e-12
A26: 16065100 | B26: 166.618 | E26: 16065100 | F26: 166.618 | G26: 1.94412603e-12 | J26: 16065100 | K26: 143.987 | N26: 16065100 | O26: 143.987 | P26: 2.450315118e-12
A27: 17357800 | B27: 156.174 | E27: 17357800 | F27: 156.174 | G27: 5.022724762e-13 | J27: 17357800 | K27: 140.901 | N27: 17357800 | O27: 140.901 | P27: -1.332919034e-12
A28: 21063400 | B28: 132.837 | E28: 21063400 | F28: 132.837 | G28: 8.512797578e-13 | J28: 21063400 | K28: 127.336 | N28: 21063400 | O28: 127.336 | P28: 6.791317444e-13
A29: 24353100 | B29: 119.841 | E29: 24353100 | F29: 119.841 | G29: 9.495837556e-14 | J29: 24353100 | K29: 118.027 | N29: 24353100 | O29: 118.027 | P29: 1.287080007e-13
A30: 28985800 | B30: 105.912 | E30: 28985800 | F30: 105.912 | G30: 2.931339999e-13 | J30: 28985800 | K30: 108.441 | N30: 28985800 | O30: 108.441 | P30: 6.254094342e-14
A31: 38004200 | B31: 91.3532 | E31: 38004200 | F31: 91.3532 | G31: -9.886559341e-15 | J31: 38004200 | K31: 95.0542 | N31: 38004200 | O31: 95.0542 | P31: 1.336297433e-13
A32: 43097700 | B32: 85.2916 | E32: 43097700 | F32: 85.2916 | G32: 3.555630411e-14 | J32: 43097700 | K32: 91.2114 | N32: 43097700 | O32: 91.2114 | P32: 8.6494433e-15
A33: 67909900 | B33: 64.1066 | E33: 67909900 | F33: 64.1066 | G33: -2.369947651e-15 | J33: 67909900 | K33: 78.5696 | N33: 67909900 | O33: 78.5696 | P33: 1.095170713e-14
A34: 71275600 | B34: 61.6973 | E34: 71275600 | F34: 61.6973 | G34: 2.352498933e-14 | J34: 71275600 | K34: 77.3324 | N34: 71275600 | O34: 77.3324 | P34: 5.837732244e-15
A35: 96204000 | B35: 48.654 | E35: 96204000 | F35: 48.654 | G35: -6.723586501e-15 | J35: 96204000 | K35: 70.1509 | N35: 96204000 | O35: 70.1509 | P35: 4.405689564e-15
A36: 115618000 | B36: 39.2274 | E36: 115618000 | F36: 39.2274 | G36: 1.215009197e-14 | J36: 115618000 | K36: 66.083 | N36: 115618000 | O36: 66.083 | P36: -3.344942223e-15
A37: 141664000 | B37: 30.9183 | E37: 141664000 | F37: 30.9183 | G37: 9.632227662e-16 | J37: 141664000 | K37: 60.1599 | N37: 141664000 | O37: 60.1599 | P37: 4.274784419e-15
A38: 196842000 | B38: 19.3384 | E38: 196842000 | F38: 19.3384 | G38: 3.29799185e-15 | J38: 196842000 | K38: 51.6746 | N38: 196842000 | O38: 51.6746 | P38: -3.000028504e-15
A39: 198756000 | B39: 19.0733 | E39: 198756000 | F39: 19.0733 | G39: -8.226006139e-16 | J39: 198756000 | K39: 51.347 | N39: 198756000 | O39: 51.347 | P39: 1.256481567e-15
A40: 258086000 | B40: 10.6594 | E40: 258086000 | F40: 10.6594 | G40: 1.257192099e-15 | J40: 258086000 | K40: 43.2459 | N40: 258086000 | O40: 43.2459 | P40: 1.003522715e-15
A41: 313183000 | B41: 5.61409 | E41: 313183000 | F41: 5.61409 | G41: 1.135354274e-15 | J41: 313183000 | K41: 38.081 | N41: 313183000 | O41: 38.081 | P41: -8.603105358e-16
A42: 325541000 | B42: 4.93844 | E42: 325541000 | F42: 4.93844 | G42: -8.482061596e-17 | J42: 325541000 | K42: 36.8162 | N42: 325541000 | O42: 36.8162 | P42: 7.400170974e-16
A43: 372759000 | B43: 2.35638 | E43: 372759000 | F43: 2.35638 | G43: -8.4469623e-17 | J43: 372759000 | K43: 32.711 | N43: 372759000 | O43: 32.711 | P43: 3.153167172e-16
A44: 398878000 | B44: 0.998688 | E44: 398878000 | F44: 0.998688 | G44: 1.248567691e-15 | J44: 398878000 | K44: 30.8334 | N44: 398878000 | O44: 30.8334 | P44: 3.499151921e-16
A45: 470185000 | B45: 0.124171 | E45: 470185000 | F45: 0.124171 | G45: -3.896193501e-17 | J45: 470185000 | K45: 26.71 | N45: 470185000 | O45: 26.71 | P45: 1.114146692e-16
A46: 672560000 | B46: 0.0013287 | E46: 672560000 | F46: 0.0013287 | G46: 1.105568071e-17 | J46: 672560000 | K46: 18.7332 | N46: 672560000 | O46: 18.7332 | P46: 1.211845492e-16
A47: 990372000 | B47: 9.84136e-06 | E47: 990372000 | F47: 9.84136e-06 | G47: 0 | J47: 990372000 | K47: 14.0788 | N47: 990372000 | O47: 14.0788 | P47: 0

Sheet FT240-52 (2)
A1: Calculate impedance of toroidal ferrite cored inductor
A3: Reference:
A4: A method for estimating the impedance of a ferrite cored toroidal inductor at RF
A6: Inputs:
A7: Al (nH for 1t) | B7: =2*340 -> 680
A8: N | B8: 11
A9: Cs (pF) | B9: 1.1
A11: Constants:
A12: Mix | B12: =Mix!B1 -> 52
A13: µi | B13: =Mix!B2 -> 250
A15: Calculated values:
A16: 2*pi*N^2*Al | B16: =2*PI()*$B$8^2*$B$7*0.000000001 -> 0.0005169804871
A18: f (MHz) | B18: 1 | C18: 1.2 | D18: 1.8 | E18: 2 | F18: 2.5 | G18: 3 | H18: 3.5 | I18: 4 | J18: 4.5 | K18: 5 | L18: 5.5 | M18: 6 | N18: =M18+1 -> 7 | O18: 8 | P18: 9 | Q18: 10 | R18: 11 | S18: 12 | T18: 13 | U18: 14 | V18: 15 | W18: 16 | X18: 17 | Y18: 18 | Z18: 19 | AA18: 22 | AB18: 24 | AC18: 26 | AD18: 28 | AE18: 30
A19: µ'' | B19: =csinterpolate(CSTableU2,'FT240-52 (2)'!B18*1000000) -> 3.0499 | C19: =csinterpolate(CSTableU2,'FT240-52 (2)'!C18*1000000) -> 3.290483119 | D19: =csinterpolate(CSTableU2,'FT240-52 (2)'!D18*1000000) -> 3.967018517 | E19: =csinterpolate(CSTableU2,'FT240-52 (2)'!E18*1000000) -> 4.162421369 | F19: =csinterpolate(CSTableU2,'FT240-52 (2)'!F18*1000000) -> 4.693447403 | G19: =csinterpolate(CSTableU2,'FT240-52 (2)'!G18*1000000) -> 5.786974597 | H19: =csinterpolate(CSTableU2,'FT240-52 (2)'!H18*1000000) -> 7.358062023 | I19: =csinterpolate(CSTableU2,'FT240-52 (2)'!I18*1000000) -> 9.926754908 | J19: =csinterpolate(CSTableU2,'FT240-52 (2)'!J18*1000000) -> 13.81033893 | K19: =csinterpolate(CSTableU2,'FT240-52 (2)'!K18*1000000) -> 20.51161151 | L19: =csinterpolate(CSTableU2,'FT240-52 (2)'!L18*1000000) -> 29.80995539 | M19: =csinterpolate(CSTableU2,'FT240-52 (2)'!M18*1000000) -> 41.29775876 | N19: =csinterpolate(CSTableU2,'FT240-52 (2)'!N18*1000000) -> 71.22782978 | O19: =csinterpolate(CSTableU2,'FT240-52 (2)'!O18*1000000) -> 98.04243289 | P19: =csinterpolate(CSTableU2,'FT240-52 (2)'!P18*1000000) -> 124.3985141 | Q19: =csinterpolate(CSTableU2,'FT240-52 (2)'!Q18*1000000) -> 137.4808043 | R19: =csinterpolate(CSTableU2,'FT240-52 (2)'!R18*1000000) -> 148.5994342 | S19: =csinterpolate(CSTableU2,'FT240-52 (2)'!S18*1000000) -> 151.0024937 | T19: =csinterpolate(CSTableU2,'FT240-52 (2)'!T18*1000000) -> 152.2312886 | U19: =csinterpolate(CSTableU2,'FT240-52 (2)'!U18*1000000) -> 151.7704405 | V19: =csinterpolate(CSTableU2,'FT240-52 (2)'!V18*1000000) -> 148.1951068 | W19: =csinterpolate(CSTableU2,'FT240-52 (2)'!W18*1000000) -> 144.1975181 | X19: =csinterpolate(CSTableU2,'FT240-52 (2)'!X18*1000000) -> 141.7087937 | Y19: =csinterpolate(CSTableU2,'FT240-52 (2)'!Y18*1000000) -> 139.0871928 | Z19: =csinterpolate(CSTableU2,'FT240-52 (2)'!Z18*1000000) -> 135.5078614 | AA19: =csinterpolate(CSTableU2,'FT240-52 (2)'!AA18*1000000) -> 124.1970315 | AB19: =csinterpolate(CSTableU2,'FT240-52 (2)'!AB18*1000000) -> 118.8541185 | AC19: =csinterpolate(CSTableU2,'FT240-52 (2)'!AC18*1000000) -> 114.3762866 | AD19: =csinterpolate(CSTableU2,'FT240-52 (2)'!AD18*1000000) -> 110.3203179 | AE19: =csinterpolate(CSTableU2,'FT240-52 (2)'!AE18*1000000) -> 106.5746901
A20: µ' | B20: =csinterpolate(CSTableU1,'FT240-52 (2)'!B18*1000000) -> 271.823 | C20: =csinterpolate(CSTableU1,'FT240-52 (2)'!C18*1000000) -> 272.1908295 | D20: =csinterpolate(CSTableU1,'FT240-52 (2)'!D18*1000000) -> 272.3470565 | E20: =csinterpolate(CSTableU1,'FT240-52 (2)'!E18*1000000) -> 271.7845312 | F20: =csinterpolate(CSTableU1,'FT240-52 (2)'!F18*1000000) -> 270.4177738 | G20: =csinterpolate(CSTableU1,'FT240-52 (2)'!G18*1000000) -> 270.723567 | H20: =csinterpolate(CSTableU1,'FT240-52 (2)'!H18*1000000) -> 277.7487386 | I20: =csinterpolate(CSTableU1,'FT240-52 (2)'!I18*1000000) -> 284.4052224 | J20: =csinterpolate(CSTableU1,'FT240-52 (2)'!J18*1000000) -> 292.2264137 | K20: =csinterpolate(CSTableU1,'FT240-52 (2)'!K18*1000000) -> 298.9390829 | L20: =csinterpolate(CSTableU1,'FT240-52 (2)'!L18*1000000) -> 301.5249442 | M20: =csinterpolate(CSTableU1,'FT240-52 (2)'!M18*1000000) -> 305.3891618 | N20: =csinterpolate(CSTableU1,'FT240-52 (2)'!N18*1000000) -> 305.2435532 | O20: =csinterpolate(CSTableU1,'FT240-52 (2)'!O18*1000000) -> 296.2383215 | P20: =csinterpolate(CSTableU1,'FT240-52 (2)'!P18*1000000) -> 276.5143723 | Q20: =csinterpolate(CSTableU1,'FT240-52 (2)'!Q18*1000000) -> 260.2891656 | R20: =csinterpolate(CSTableU1,'FT240-52 (2)'!R18*1000000) -> 237.532035 | S20: =csinterpolate(CSTableU1,'FT240-52 (2)'!S18*1000000) -> 218.8742166 | T20: =csinterpolate(CSTableU1,'FT240-52 (2)'!T18*1000000) -> 203.3317219 | U20: =csinterpolate(CSTableU1,'FT240-52 (2)'!U18*1000000) -> 189.3765055 | V20: =csinterpolate(CSTableU1,'FT240-52 (2)'!V18*1000000) -> 177.3300299 | W20: =csinterpolate(CSTableU1,'FT240-52 (2)'!W18*1000000) -> 167.2096561 | X20: =csinterpolate(CSTableU1,'FT240-52 (2)'!X18*1000000) -> 158.8781002 | Y20: =csinterpolate(CSTableU1,'FT240-52 (2)'!Y18*1000000) -> 151.5012432 | Z20: =csinterpolate(CSTableU1,'FT240-52 (2)'!Z18*1000000) -> 144.6963794 | AA20: =csinterpolate(CSTableU1,'FT240-52 (2)'!AA18*1000000) -> 128.5557802 | AB20: =csinterpolate(CSTableU1,'FT240-52 (2)'!AB18*1000000) -> 121.0419581 | AC20: =csinterpolate(CSTableU1,'FT240-52 (2)'!AC18*1000000) -> 114.4356942 | AD20: =csinterpolate(CSTableU1,'FT240-52 (2)'!AD18*1000000) -> 108.4930625 | AE20: =csinterpolate(CSTableU1,'FT240-52 (2)'!AE18*1000000) -> 103.5410108
A21: Rl | B21: =B19/$B$13*$B$16*B18*1000000 -> 6.30695515 | C21: 8.165354715 | D21: 14.76627239 | E21: 17.21512501 | F21: 24.26420724 | G21: 35.90103535 | H21: 53.25564284 | I21: 82.1110174 | J21: 128.5141634 | K21: 212.0820582 | L21: 339.0456357 | M21: 512.4032505 | N21: 1031.055148 | O21: 1621.952791 | P21: 2315.217759 | Q21: 2842.995727 | R21: 3380.212347 | S21: 3747.136452 | T21: 4092.431499 | U21: 4393.89195 | V21: 4596.838711 | W21: 4771.027402 | X21: 4981.726321 | Y21: 5177.186258 | Z21: 5324.173933 | AA21: 5650.25488 | AB21: 5898.744967 | AC21: 6149.552067 | AD21: 6387.746588 | AE21: 6611.644223
A22: Xl | B22: =B20/$B$13*$B$16*B18*1000000 -> 562.1087478 | C22: 675.4432685 | D22: 1013.74642 | E22: 1124.058394 | F22: 1398.007124 | G22: 1679.505618 | H22: 2010.269494 | I22: 2352.511207 | J22: 2719.356366 | K22: 3090.913454 | L22: 3429.415275 | M22: 3789.125703 | N22: 4418.538903 | O22: 4900.781816 | P22: 5146.291256 | Q22: 5382.576785 | R22: 5403.174794 | S22: 5431.377557 | T22: 5466.163697 | U22: 5482.621651 | V22: 5500.569915 | W22: 5532.424285 | X22: 5585.307678 | Y22: 5639.269429 | Z22: 5685.195558 | AA22: 5848.553027 | AB22: 6007.327725 | AC22: 6152.746175 | AD22: 6281.945184 | AE22: 6423.441861
A23: Yl | B23: =IMDIV(1,COMPLEX(B21,B22)) -> 0.0000199583384852523-0.00177879125285312i | C23: 0.0000178950879260653-0.0014802929083073i | D23: 0.0000143654777533586-0.000986230733382038i | E23: 0.000013621677087023-0.000889424878706055i | F23: 0.000012411278768056-0.000715088523573692i | G23: 0.0000127217147613866-0.000595141371544516i | H23: 0.0000131689873117816-0.000497096871837091i | I23: 0.0000148186714920845-0.000424560453105272i | J23: 0.000017340030816393-0.000366914602571808i | K23: 0.0000220948160395112-0.000322012926186095i | L23: 0.0000285491893674193-0.000288772412345205i | M23: 0.0000350480283961516-0.000259173580762243i | N23: 0.0000500838950270796-0.000214632203779439i | O23: 0.0000608649375172311-0.000183905339725022i | P23: 0.0000727037430229686-0.000161606671998315i | Q23: 0.0000767241756493239-0.000145260072947093i | R23: 0.0000832151956844082-0.000133017160362337i | S23: 0.0000860601638741639-0.000124741985940884i | T23: 0.000087769675634087-0.000117231874197146i | U23: 0.0000890074744544819-0.000111061972409819i | V23: 0.0000894549442628005-0.000107041644493924i | W23: 0.0000893945994454294-0.000103660870334666i | X23: 0.0000889383408487184-0.0000997140280343785i | Y23: 0.000088340927750892-0.000096225684836399i | Z23: 0.0000877587798944983-0.0000937095278802414i | AA23: 0.00008544039739495-0.0000884389652188022i | AB23: 0.0000832178393452442-0.0000847496944306824i | AC23: 0.0000812645147942993-0.0000813067239880936i | AD23: 0.0000795820809053618-0.0000782639484824795i | AE23: 0.0000778074425547904-0.0000755926312412875i
A24: Yc | B24: =COMPLEX(0,2*PI()*B18*1000000*$B$9*0.000000000001) -> 6.91150383789754E-06i | C24: 8.29380460547705E-06i | D24: 0.0000124407069082156i | E24: 0.0000138230076757951i | F24: 0.0000172787595947439i | G24: 0.0000207345115136926i | H24: 0.0000241902634326414i | I24: 0.0000276460153515902i | J24: 0.000031101767270539i | K24: 0.0000345575191894877i | L24: 0.0000380132711084365i | M24: 0.0000414690230273853i | N24: 0.0000483805268652828i | O24: 0.0000552920307031804i | P24: 0.0000622035345410779i | Q24: 0.0000691150383789754i | R24: 0.000076026542216873i | S24: 0.0000829380460547705i | T24: 0.0000898495498926681i | U24: 0.0000967610537305656i | V24: 0.000103672557568463i | W24: 0.000110584061406361i | X24: 0.000117495565244258i | Y24: 0.000124407069082156i | Z24: 0.000131318572920053i | AA24: 0.000152053084433746i | AB24: 0.000165876092109541i | AC24: 0.000179699099785336i | AD24: 0.000193522107461131i | AE24: 0.000207345115136926i
A25: Z | B25: =IMDIV(1,IMSUM(B23,B24)) -> 6.35624745683327+564.300788706159i | C25: 8.25761374707366+679.247851959613i | D25: 15.1458944623339+1026.69199191775i | E25: 17.7628285742946+1141.79523087207i | F25: 25.4803319724424+1432.6021332756i | G25: 38.5383789019969+1740.07275206046i | H25: 58.8389576058775+2112.94393598169i | I25: 93.9313458987511+2515.92778507603i | J25: 153.355329610926+2969.93059530896i | K25: 265.822150833533+3458.36844352641i | L25: 448.215689183754+3936.86068848002i | M25: 720.802253698016+4477.33989718081i | N25: 1661.26666513186+5514.51457061054i | O25: 3006.28106123652+6352.55322534196i | P25: 4793.6055598871+6553.98762942229i | Q25: 6566.22786375973+6516.6636648318i | R25: 8180.24723097174+5602.31028049063i | S25: 9401.45343520131+4566.77952440245i | T25: 10382.8796156058+3239.24379114892i | U25: 10952.2766728562+1759.71309163815i | V25: 11162.9777631229+420.424412992328i | W25: 11119.6648495248-861.165717885062i | X25: 10811.5795992853-2161.57062418414i | Y25: 10274.2199839348-3277.54924658664i | Z25: 9626.84938941297-4125.58849055527i | AA25: 7529.89956092108-5606.34012656522i | AB25: 6161.22606115877-6006.38131871275i | AC25: 4990.15104133108-6041.90916276893i | AD25: 4056.63634259019-5875.19742099802i | AE25: 3323.29856337174-5627.39020939685i
A26: R | B26: =IMREAL(B25) -> 6.356247457 | C26: 8.257613747 | D26: 15.14589446 | E26: 17.76282857 | F26: 25.48033197 | G26: 38.5383789 | H26: 58.83895761 | I26: 93.9313459 | J26: 153.3553296 | K26: 265.8221508 | L26: 448.2156892 | M26: 720.8022537 | N26: 1661.266665 | O26: 3006.281061 | P26: 4793.60556 | Q26: 6566.227864 | R26: 8180.247231 | S26: 9401.453435 | T26: 10382.87962 | U26: 10952.27667 | V26: 11162.97776 | W26: 11119.66485 | X26: 10811.5796 | Y26: 10274.21998 | Z26: 9626.849389 | AA26: 7529.899561 | AB26: 6161.226061 | AC26: 4990.151041 | AD26: 4056.636343 | AE26: 3323.298563
A27: X | B27: =IMAGINARY(B25) -> 564.3007887 | C27: 679.247852 | D27: 1026.691992 | E27: 1141.795231 | F27: 1432.602133 | G27: 1740.072752 | H27: 2112.943936 | I27: 2515.927785 | J27: 2969.930595 | K27: 3458.368444 | L27: 3936.860688 | M27: 4477.339897 | N27: 5514.514571 | O27: 6352.553225 | P27: 6553.987629 | Q27: 6516.663665 | R27: 5602.31028 | S27: 4566.779524 | T27: 3239.243791 | U27: 1759.713092 | V27: 420.424413 | W27: -861.1657179 | X27: -2161.570624 | Y27: -3277.549247 | Z27: -4125.588491 | AA27: -5606.340127 | AB27: -6006.381319 | AC27: -6041.909163 | AD27: -5875.197421 | AE27: -5627.390209
A28: |Z| | B28: =IMABS(B25) -> 564.3365858 | C28: 679.298044 | D28: 1026.803703 | E28: 1141.93339 | F28: 1432.828713 | G28: 1740.499465 | H28: 2113.763019 | I28: 2517.680623 | J28: 2973.887287 | K28: 3468.569404 | L28: 3962.29345 | M28: 4534.989354 | N28: 5759.312275 | O28: 7027.991057 | P28: 8119.938923 | Q28: 9251.067705 | R28: 9914.752909 | S28: 10451.92814 | T28: 10876.43735 | U28: 11092.74333 | V28: 11170.89205 | W28: 11152.96161 | X28: 11025.54493 | Y28: 10784.33704 | Z28: 10473.6197 | AA28: 9387.781261 | AB28: 8604.494356 | AC28: 7836.215525 | AD28: 7139.624861 | AE28: 6535.42913
A32: Module | B32: Version | C32: Date
A33: CubicSpline | B33: =CubicSpline_version("v") -> 1.04 | C33: =CubicSpline_version("d") -> 2014-03-07
A35: Copyright: Owen Duffy 2010. All rights reserved.
